fUST/lending_fUST_20250603
["ID","MTS","AMOUNT","RATE_DAILY","PERIOD"]
[363853205,1748899839178,-440.0,0.00016971,2]
[363853206,1748899839188,-440.0,0.00016971,2]
[363853212,1748899839350,-420.0,0.00016971,2]
[363853213,1748899839369,-440.0,0.00016971,2]
[363853214,1748899839382,-218.07,0.00016971,2]
[363853215,1748899839391,-440.0,0.00016971,2]
[363853216,1748899839401,-420.0,0.00016971,2]
[363853217,1748899839410,-420.0,0.00016971,2]
[363853218,1748899839420,-440.0,0.00016971,2]
[363853219,1748899839430,-440.0,0.00016971,2]
[363853220,1748899839439,-440.0,0.00016971,2]
[363853221,1748899839449,-420.0,0.00016971,2]
[363853222,1748899839459,-440.0,0.00016971,2]
[363853223,1748899839469,-420.0,0.00016971,2]
[363853224,1748899839479,-420.0,0.00016971,2]
[363853225,1748899839490,-440.0,0.00016971,2]
[363853226,1748899839500,-440.0,0.00016971,2]
[363853227,1748899839510,-440.0,0.00016971,2]
[363853228,1748899839519,-500.0,0.00016972,2]
[363853229,1748899839529,-440.0,0.00016972,2]
[363853230,1748899839539,-390.0,0.00016972,2]
[363853231,1748899839549,-420.0,0.00016972,2]
[363853232,1748899839559,-420.0,0.00016972,2]
[363853233,1748899839568,-420.0,0.00016972,2]
[363853234,1748899839578,-420.0,0.00016972,2]
[363853235,1748899839588,-476.43572756,0.00016972,2]
[363853236,1748899839597,-420.0,0.00016972,2]
[363853237,1748899839607,-420.0,0.00016972,2]
[363853238,1748899839616,-420.0,0.00016972,2]
[363853239,1748899839626,-424.69431804,0.00016972,2]
[363853240,1748899839635,-440.0,0.00016972,2]
[363853241,1748899839646,-232.5849442,0.00016972,2]
[363853242,1748899839655,-420.0,0.00016972,2]
[363853243,1748899839664,-278.81223921,0.00016972,2]
[363853244,1748899839674,-420.0,0.00016972,2]
[363853245,1748899839683,-447.11844727,0.00016972,2]
[363853246,1748899839694,-420.0,0.00016972,2]
[363853247,1748899839703,-490.613989,0.00016972,2]
[363853248,1748899839713,-477.21132094,0.00016972,2]
[363853249,1748899839722,-440.0,0.00016972,2]
[363853250,1748899839732,-420.0,0.00016972,2]
[363853251,1748899839741,-420.0,0.00016972,2]
[363853252,1748899839751,-361.0064111,0.00016972,2]
[363853253,1748899839760,-420.0,0.00016972,2]
[363853254,1748899839769,-420.0,0.00016972,2]
[363853255,1748899839779,-420.0,0.00016972,2]
[363853256,1748899839788,-420.0,0.00016972,2]
[363853257,1748899839798,-420.0,0.00016972,2]
[363853258,1748899839808,-420.0,0.00016972,2]
[363853259,1748899839817,-361.91294075,0.00016972,2]
[363853260,1748899839826,-420.0,0.00016972,2]
[363853261,1748899839836,-440.0,0.00016972,2]
[363853262,1748899839846,-500.0,0.00016972,2]
[363853263,1748899839855,-564.16613762,0.00016972,2]
[363853264,1748899839864,-420.0,0.00016972,2]
[363853265,1748899839874,-420.0,0.00016972,2]
[363853266,1748899839883,-194.34349604,0.00016972,2]
[363853267,1748899839893,-420.0,0.00016972,2]
[363853268,1748899839902,-440.0,0.00016972,2]
[363853269,1748899839912,-420.0,0.00016972,2]
[363853270,1748899839922,-420.0,0.00016972,2]
[363853271,1748899839932,-420.0,0.00016972,2]
[363853272,1748899839941,-420.0,0.00016972,2]
[363853273,1748899839950,-420.0,0.00016972,2]
[363853274,1748899839960,-420.0,0.00016972,2]
[363853275,1748899839970,-615.38,0.00016972,2]
[363853276,1748899839979,-420.0,0.00016972,2]
[363853277,1748899839988,-420.0,0.00016972,2]
[363853278,1748899840002,-420.0,0.00016972,2]
[363853279,1748899840013,-465.81552741,0.00016972,2]
[363853280,1748899840022,-420.0,0.00016972,2]
[363853281,1748899840031,-420.0,0.00016972,2]
[363853282,1748899840042,-440.0,0.00016972,2]
[363853283,1748899840051,-440.0,0.00016972,2]
[363853284,1748899840061,-330.0,0.00016972,2]
[363853285,1748899840071,-420.0,0.00016972,2]
[363853286,1748899840080,-420.0,0.00016972,2]
[363853287,1748899840089,-472.54944565,0.00016972,2]
[363853288,1748899840098,-440.0,0.00016972,2]
[363853289,1748899840108,-420.0,0.00016972,2]
[363853290,1748899840117,-420.0,0.00016972,2]
[363853291,1748899840126,-420.0,0.00016972,2]
[363853292,1748899840135,-420.0,0.00016972,2]
[363853293,1748899840144,-440.0,0.00016972,2]
[363853294,1748899840154,-420.0,0.00016972,2]
[363853295,1748899840163,-167.19976881,0.00016972,2]
[363853296,1748899840173,-420.0,0.00016972,2]
[363853297,1748899840182,-440.0,0.00016972,2]
[363853298,1748899840193,-420.0,0.00016972,2]
[363853299,1748899840202,-420.0,0.00016972,2]
[363853300,1748899840211,-420.0,0.00016972,2]
[363853301,1748899840220,-420.0,0.00016972,2]
[363853302,1748899840229,-440.0,0.00016972,2]
[363853303,1748899840238,-441.81503509,0.00016972,2]
[363853304,1748899840248,-440.0,0.00016972,2]
[363853305,1748899840258,-440.0,0.00016972,2]
[363853306,1748899840267,-460.0,0.00016972,2]
[363853307,1748899840276,-420.0,0.00016972,2]
[363853308,1748899840286,-420.0,0.00016972,2]
[363853309,1748899840295,-420.0,0.00016972,2]
[363853310,1748899840304,-420.0,0.00016972,2]
[363853311,1748899840314,-497.67760231,0.00016972,2]
[363853312,1748899840323,-370.0,0.00016972,2]
[363853313,1748899840332,-420.0,0.00016972,2]
[363853315,1748899840341,-440.0,0.00016972,2]
[363853317,1748899840350,-440.0,0.00016972,2]
[363853319,1748899840359,-420.0,0.00016972,2]
[363853321,1748899840368,-440.0,0.00016972,2]
[363853323,1748899840377,-440.0,0.00016972,2]
[363853324,1748899840386,-440.0,0.00016972,2]
[363853326,1748899840395,-440.0,0.00016972,2]
[363853328,1748899840405,-500.0,0.00016972,2]
[363853330,1748899840416,-500.0,0.00016972,2]
[363853332,1748899840426,-500.0,0.00016972,2]
[363853334,1748899840435,-420.0,0.00016973,2]
[363853336,1748899840444,-420.0,0.00016973,2]
[363853339,1748899840454,-420.0,0.00016973,2]
[363853341,1748899840463,-440.0,0.00016973,2]
[363853342,1748899840473,-420.0,0.00016973,2]
[363853345,1748899840483,-440.0,0.00016973,2]
[363853346,1748899840492,-440.0,0.00016973,2]
[363853348,1748899840502,-420.0,0.00016973,2]
[363853350,1748899840512,-440.0,0.00016973,2]
[363853352,1748899840521,-420.0,0.00016973,2]
[363853355,1748899840531,-420.0,0.00016973,2]
[363853357,1748899840540,-440.0,0.00016973,2]
[363853359,1748899840550,-420.0,0.00016973,2]
[363853361,1748899840559,-420.0,0.00016973,2]
[363853363,1748899840569,-440.0,0.00016973,2]
[363853364,1748899840579,-440.0,0.00016973,2]
[363853366,1748899840588,-319.67536577,0.00016973,2]
[363853368,1748899840598,-420.0,0.00016973,2]
[363853370,1748899840607,-440.0,0.00016973,2]
[363853372,1748899840616,-420.0,0.00016973,2]
[363853374,1748899840626,-440.0,0.00016973,2]
[363853376,1748899840638,-360.0,0.00016973,2]
[363853378,1748899840647,-440.0,0.00016973,2]
[363853380,1748899840656,-623.24,0.00016973,2]
[363853382,1748899840666,-473.8913643,0.00016973,2]
[363853384,1748899840675,-420.0,0.00016973,2]
[363853386,1748899840685,-440.0,0.00016973,2]
[363853388,1748899840695,-440.0,0.00016973,2]
[363853390,1748899840705,-440.0,0.00016974,2]
[363853393,1748899840715,-420.0,0.00016974,2]
[363853395,1748899840724,-196.35400797,0.00016974,2]
[363853396,1748899840734,-490.31422482,0.00016974,2]
[363853399,1748899840744,-393.65476012,0.00016974,2]
[363853400,1748899840753,-420.0,0.00016974,2]
[363853403,1748899840764,-420.0,0.00016974,2]
[363853405,1748899840774,-420.0,0.00016974,2]
[363853406,1748899840783,-176.22709716,0.00016974,2]
[363853408,1748899840793,-420.0,0.00016974,2]
[363853411,1748899840803,-420.0,0.00016974,2]
[363853413,1748899840812,-420.0,0.00016974,2]
[363853415,1748899840822,-395.76350598,0.00016974,2]
[363853417,1748899840832,-513.67772657,0.00017027,2]
[363853419,1748899840842,-500.0,0.00017055,2]
[363853421,1748899840851,-500.0,0.00017147,2]
[363853423,1748899840861,-501.49495753,0.00017147,2]
[363853425,1748899840870,-779.8163676,0.00017216,2]
[363853427,1748899840880,-283.92,0.00017244,2]
[363853429,1748899840889,-302.82,0.00017244,2]
[363853431,1748899840899,-440.0,0.00017244,2]
[363853433,1748899840909,-440.0,0.00017244,2]
[363853435,1748899840918,-410.0,0.00017245,2]
[363853437,1748899840928,-410.0,0.00017245,2]
[363853439,1748899840937,-440.0,0.00017245,2]
[363853441,1748899840946,-349.96880569,0.00017245,2]
[363853443,1748899840955,-858.73,0.00017245,2]
[363853445,1748899840965,-440.0,0.00017245,2]
[363853447,1748899840975,-440.0,0.00017245,2]
[363853449,1748899840985,-420.11,0.00017245,2]
[363853451,1748899840995,-410.0,0.00017245,2]
[363853453,1748899841006,-410.0,0.00017245,2]
[363853455,1748899841017,-804.7,0.00017245,2]
[363853457,1748899841027,-440.0,0.00017245,2]
[363853459,1748899841036,-440.0,0.00017245,2]
[363853461,1748899841046,-603.16,0.00017245,2]
[363853463,1748899841055,-440.0,0.00017245,2]
[363853465,1748899841064,-440.0,0.00017245,2]
[363853467,1748899841073,-440.0,0.00017245,2]
[363853469,1748899841083,-440.0,0.00017245,2]
[363853471,1748899841093,-440.0,0.00017245,2]
[363853473,1748899841102,-440.0,0.00017245,2]
[363853475,1748899841112,-440.0,0.00017245,2]
[363853477,1748899841122,-440.0,0.00017245,2]
[363853479,1748899841132,-380.0,0.00017245,2]
[363853481,1748899841144,-440.0,0.00017245,2]
[363853483,1748899841153,-440.0,0.00017245,2]
[363853485,1748899841162,-440.0,0.00017245,2]
[363853487,1748899841172,-440.0,0.00017245,2]
[363853489,1748899841181,-440.0,0.00017245,2]
[363853491,1748899841190,-440.0,0.00017245,2]
[363853493,1748899841200,-440.0,0.00017246,2]
[363853495,1748899841209,-440.0,0.00017246,2]
[363853497,1748899841219,-440.0,0.00017246,2]
[363853499,1748899841228,-440.0,0.00017246,2]
[363853501,1748899841238,-615.38,0.00017246,2]
[363853503,1748899841247,-440.0,0.00017246,2]
[363853505,1748899841258,-440.0,0.00017246,2]
[363853507,1748899841268,-440.0,0.00017246,2]
[363853509,1748899841277,-410.0,0.00017246,2]
[363853511,1748899841288,-440.0,0.00017246,2]
[363853513,1748899841298,-440.0,0.00017246,2]
[363853515,1748899841307,-440.0,0.00017246,2]
[363853517,1748899841316,-440.0,0.00017246,2]
[363853519,1748899841326,-440.0,0.00017246,2]
[363853521,1748899841336,-331.45830907,0.00017246,2]
[363853523,1748899841345,-162.67,0.00017246,2]
[363853525,1748899841354,-440.0,0.00017246,2]
[363853527,1748899841363,-437.72,0.00017246,2]
[363853529,1748899841373,-440.0,0.00017247,2]
[363853530,1748899841385,-440.0,0.00017247,2]
[363853532,1748899841396,-410.0,0.00017247,2]
[363853534,1748899841406,-440.0,0.00017247,2]
[363853535,1748899841415,-440.0,0.00017247,2]
[363853536,1748899841425,-440.0,0.00017247,2]
[363853537,1748899841435,-440.0,0.00017247,2]
[363853539,1748899841444,-440.0,0.00017247,2]
[363853540,1748899841454,-440.0,0.00017247,2]
[363853542,1748899841464,-440.0,0.00017247,2]
[363853544,1748899841473,-623.24,0.00017247,2]
[363853546,1748899841483,-440.0,0.00017247,2]
[363853548,1748899841492,-410.0,0.00017247,2]
[363853549,1748899841502,-440.0,0.00017248,2]
[363853550,1748899841512,-500.0,0.00017253,2]
[363853551,1748899841522,-440.0,0.00017518,2]
[363853552,1748899841532,-440.0,0.00017518,2]
[363853553,1748899841542,-440.0,0.00017519,2]
[363853554,1748899841552,-858.73,0.00017519,2]
[363853555,1748899841561,-440.0,0.00017519,2]
[363853556,1748899841571,-440.0,0.00017519,2]
[363853557,1748899841580,-804.7,0.00017519,2]
[363853558,1748899841590,-440.0,0.00017519,2]
[363853559,1748899841600,-440.0,0.00017519,2]
[363853560,1748899841610,-603.16,0.00017519,2]
[363853561,1748899841621,-440.0,0.00017519,2]
[363853562,1748899841630,-440.0,0.00017519,2]
[363853563,1748899841639,-440.0,0.00017519,2]
[363853564,1748899841649,-371.35606081,0.00017519,2]
[363853565,1748899841658,-440.0,0.00017519,2]
[363853566,1748899841667,-440.0,0.00017519,2]
[363853567,1748899841677,-440.0,0.00017519,2]
[363853568,1748899841686,-440.0,0.00017519,2]
[363853569,1748899841696,-566.11,0.00017519,2]
[363853570,1748899841705,-440.0,0.00017519,2]
[363853571,1748899841715,-440.0,0.00017519,2]
[363853572,1748899841725,-440.0,0.00017519,2]
[363853574,1748899841735,-440.0,0.00017519,2]
[363853575,1748899841744,-440.0,0.00017519,2]
[363853577,1748899841754,-440.0,0.0001752,2]
[363853579,1748899841764,-440.86628721,0.0001752,2]
[363853581,1748899841774,-440.0,0.0001752,2]
[363853583,1748899841784,-440.0,0.0001752,2]
[363853585,1748899841793,-615.38,0.0001752,2]
[363853586,1748899841802,-440.0,0.0001752,2]
[363853587,1748899841812,-440.0,0.0001752,2]
[363853589,1748899841822,-440.0,0.0001752,2]
[363853591,1748899841833,-440.0,0.0001752,2]
[363853592,1748899841843,-440.0,0.0001752,2]
[363853594,1748899841853,-440.0,0.0001752,2]
[363853596,1748899841862,-440.0,0.0001752,2]
[363853597,1748899841873,-440.0,0.0001752,2]
[363853598,1748899841882,-440.0,0.0001752,2]
[363853599,1748899841892,-509.77928341,0.0001752,2]
[363853600,1748899841902,-1000.0,0.0001752,2]
[363853601,1748899841912,-440.0,0.00017521,2]
[363853602,1748899841923,-440.0,0.00017521,2]
[363853603,1748899841933,-440.0,0.00017521,2]
[363853604,1748899841943,-440.0,0.00017521,2]
[363853605,1748899841952,-440.0,0.00017521,2]
[363853606,1748899841961,-440.0,0.00017521,2]
[363853607,1748899841971,-500.0,0.00017521,2]
[363853608,1748899841981,-440.0,0.00017521,2]
[363853609,1748899841991,-440.0,0.00017521,2]
[363853610,1748899842005,-440.0,0.00017521,2]
[363853611,1748899842015,-623.24,0.00017521,2]
[363853612,1748899842026,-440.0,0.00017521,2]
[363853613,1748899842035,-354.68,0.00017522,2]
[363853614,1748899842046,-229.80585427,0.00017602,2]
[363853615,1748899842056,-172.91760574,0.00017635,2]
[363853616,1748899842066,-2847.2,0.00017695,2]
[363853617,1748899842076,-440.0,0.00017792,2]
[363853618,1748899842085,-440.0,0.00017792,2]
[363853619,1748899842095,-440.0,0.00017793,2]
[363853620,1748899842105,-858.73,0.00017793,2]
[363853621,1748899842114,-340.0,0.00017793,2]
[363853622,1748899842124,-440.0,0.00017793,2]
[363853623,1748899842133,-804.7,0.00017793,2]
[363853624,1748899842143,-440.0,0.00017793,2]
[363853625,1748899842153,-440.0,0.00017793,2]
[363853626,1748899842162,-603.16,0.00017793,2]
[363853627,1748899842172,-440.0,0.00017793,2]
[363853628,1748899842183,-440.0,0.00017793,2]
[363853629,1748899842193,-440.0,0.00017793,2]
[363853630,1748899842203,-440.0,0.00017793,2]
[363853632,1748899842213,-440.0,0.00017793,2]
[363853634,1748899842223,-440.0,0.00017793,2]
[363853635,1748899842233,-440.0,0.00017793,2]
[363853636,1748899842242,-440.0,0.00017793,2]
[363853637,1748899842252,-440.0,0.00017793,2]
[363853638,1748899842262,-440.0,0.00017793,2]
[363853639,1748899842272,-440.0,0.00017793,2]
[363853640,1748899842282,-440.0,0.00017793,2]
[363853641,1748899842292,-440.0,0.00017794,2]
[363853642,1748899842302,-440.0,0.00017794,2]
[363853643,1748899842312,-440.0,0.00017794,2]
[363853644,1748899842321,-615.38,0.00017794,2]
[363853645,1748899842331,-440.0,0.00017794,2]
[363853646,1748899842341,-440.0,0.00017794,2]
[363853647,1748899842351,-440.0,0.00017794,2]
[363853648,1748899842360,-440.0,0.00017794,2]
[363853649,1748899842372,-390.0,0.00017794,2]
[363853650,1748899842383,-440.0,0.00017794,2]
[363853651,1748899842392,-440.0,0.00017794,2]
[363853652,1748899842401,-440.0,0.00017794,2]
[363853653,1748899842411,-440.0,0.00017794,2]
[363853654,1748899842420,-440.0,0.00017795,2]
[363853656,1748899842430,-440.0,0.00017795,2]
[363853658,1748899842439,-440.0,0.00017795,2]
[363853660,1748899842449,-390.0,0.00017795,2]
[363853673,1748899842569,-171.61,0.00017795,2]
[363853676,1748899842584,-399.54,0.00017795,2]
[363853678,1748899842594,-440.0,0.00017795,2]
[363853680,1748899842604,-440.0,0.00017795,2]
[363853682,1748899842614,-440.0,0.00017795,2]
[363853684,1748899842623,-623.24,0.00017795,2]
[363853686,1748899842633,-440.0,0.00017795,2]
[363853688,1748899842643,-500.0,0.00017796,2]
[363853690,1748899842653,-151.0,0.00017797,2]
[363853692,1748899842663,-3340.3,0.00017797,2]
[363853694,1748899842673,-3340.3,0.00017797,2]
[363853696,1748899842683,-529.43261717,0.000179,2]
[363853698,1748899842693,-1277.66,0.00017949,2]
[363853700,1748899842703,-39392.73634196,0.00018,2]
[363853702,1748899842713,-12215.63968401,0.00018,2]
[363853719,1748899842862,-440.0,0.00016696,2]
[363853721,1748899842873,-2485.79542973,0.00018,2]
[363853751,1748899843153,-516.02723809,0.00016698,2]
[363853753,1748899843162,-450.0,0.00016698,2]
[363853755,1748899843172,-420.0,0.0001697,2]
[363853757,1748899843182,-440.0,0.00017244,2]
[363853759,1748899843191,-2769.93946486,0.00018,2]
[363853761,1748899843203,-1518.5002653,0.00018,2]
[363853763,1748899843213,-440.0,0.00018066,2]
[363853765,1748899843223,-440.0,0.00018066,2]
[363853767,1748899843233,-156.16,0.00018067,2]
[363853770,1748899843242,-858.73,0.00018067,2]
[363853771,1748899843251,-440.0,0.00018067,2]
[363853774,1748899843262,-804.7,0.00018067,2]
[363853776,1748899843271,-568.56,0.00018067,2]
[363853778,1748899843281,-440.0,0.00018067,2]
[363853779,1748899843290,-603.16,0.00018067,2]
[363853782,1748899843300,-440.0,0.00018067,2]
[363853784,1748899843310,-440.0,0.00018067,2]
[363853786,1748899843320,-273.31,0.00018067,2]
[363853788,1748899843329,-440.0,0.00018067,2]
[363853790,1748899843339,-540.37,0.00018067,2]
[363853792,1748899843350,-327.04,0.00018067,2]
[363853794,1748899843361,-440.0,0.00018067,2]
[363853795,1748899843370,-440.0,0.00018067,2]
[363853797,1748899843379,-440.0,0.00018067,2]
[363853799,1748899843389,-430.4697347,0.00018067,2]
[363853802,1748899843405,-9.5302653,0.00018067,2]
[363853803,1748899843414,-549.42,0.00018067,2]
[363853804,1748899843424,-440.0,0.00018067,2]
[363853805,1748899843433,-440.0,0.00018068,2]
[363853806,1748899843443,-440.0,0.00018068,2]
[363853807,1748899843452,-440.0,0.00018068,2]
[363853808,1748899843462,-615.38,0.00018068,2]
[363853809,1748899843471,-440.0,0.00018068,2]
[363853810,1748899843481,-440.0,0.00018068,2]
[363853811,1748899843490,-440.0,0.00018068,2]
[363853812,1748899843499,-440.0,0.00018068,2]
[363853813,1748899843508,-440.0,0.00018068,2]
[363853814,1748899843518,-380.0,0.00018068,2]
[363853815,1748899843527,-440.0,0.00018068,2]
[363853816,1748899843536,-440.0,0.00018068,2]
[363853817,1748899843545,-500.0,0.00018068,2]
[363853818,1748899843554,-380.0,0.00018069,2]
[363853819,1748899843563,-478.57,0.00018069,2]
[363853820,1748899843573,-440.0,0.00018069,2]
[363853821,1748899843583,-440.0,0.00018069,2]
[363853822,1748899843592,-440.0,0.00018069,2]
[363853823,1748899843602,-440.0,0.00018069,2]
[363853824,1748899843611,-623.24,0.00018069,2]
[363853826,1748899843621,-440.0,0.00018069,2]
[363853828,1748899843631,-500.0,0.00018094,2]
[363853830,1748899843642,-529.4326171,0.00018107,2]
[363853832,1748899843653,-240.0,0.00018215,2]
[363853834,1748899843663,-187.0,0.0001824,2]
[363853835,1748899843673,-233.0,0.0001824,2]
[363853837,1748899843682,-420.0,0.0001824,2]
[363853838,1748899843692,-529.4326171,0.00018314,2]
[363853840,1748899843701,-440.0,0.0001834,2]
[363853842,1748899843711,-440.0,0.0001834,2]
[363853844,1748899843720,-858.73,0.00018341,2]
[363853846,1748899843729,-440.0,0.00018341,2]
[363853849,1748899843740,-804.7,0.00018341,2]
[363853851,1748899843749,-440.0,0.00018341,2]
[363853853,1748899843759,-603.16,0.00018341,2]
[363853855,1748899843768,-440.0,0.00018341,2]
[363853857,1748899843778,-440.0,0.00018341,2]
[363853858,1748899843787,-390.0,0.00018341,2]
[363853860,1748899843796,-390.0,0.00018341,2]
[363853862,1748899843805,-440.0,0.00018341,2]
[363853864,1748899843815,-440.0,0.00018341,2]
[363853867,1748899843825,-440.0,0.00018341,2]
[363853869,1748899843834,-440.0,0.00018341,2]
[363853871,1748899843844,-440.0,0.00018342,2]
[363853873,1748899843854,-440.0,0.00018342,2]
[363853875,1748899843863,-440.0,0.00018342,2]
[363853877,1748899843873,-615.38,0.00018342,2]
[363853879,1748899843883,-440.0,0.00018342,2]
[363853881,1748899843892,-440.0,0.00018342,2]
[363853883,1748899843901,-440.0,0.00018342,2]
[363853885,1748899843911,-440.0,0.00018342,2]
[363853887,1748899843920,-440.0,0.00018342,2]
[363853889,1748899843930,-440.0,0.00018342,2]
[363853891,1748899843940,-440.0,0.00018342,2]
[363853893,1748899843950,-440.0,0.00018343,2]
[363853895,1748899843959,-242.98,0.00018343,2]
[363853897,1748899843968,-440.0,0.00018343,2]
[363853899,1748899843978,-440.0,0.00018343,2]
[363853901,1748899843987,-623.24,0.00018343,2]
[363853903,1748899843999,-440.0,0.00018343,2]
[363853905,1748899844009,-151.0,0.00018345,2]
[363853907,1748899844018,-500.0,0.00018349,2]
[363853909,1748899844027,-212.83419937,0.0001835,2]
[363853911,1748899844036,-12668.79298183,0.0001835,2]
[363853913,1748899844047,-160.0,0.0001835,2]
[363853915,1748899844057,-160.0,0.0001835,2]
[363853917,1748899844067,-229.39799938,0.0001835,2]
[363853919,1748899844077,-842.5625,0.0001835,2]
[363853921,1748899844086,-423.56953423,0.0001835,2]
[363853923,1748899844096,-160.0,0.0001835,2]
[363853924,1748899844105,-160.0,0.0001835,2]
[363853926,1748899844115,-160.0,0.0001835,2]
[363853928,1748899844124,-1000.0,0.00018368,7]
[363853930,1748899844134,-1000.0,0.00018369,7]
[363853933,1748899844143,-529.4326171,0.00018521,2]
[363853935,1748899844153,-440.0,0.00018614,2]
[363853937,1748899844163,-440.0,0.00018614,2]
[363853938,1748899844172,-858.73,0.00018615,2]
[363853941,1748899844182,-440.0,0.00018615,2]
[363853942,1748899844192,-804.7,0.00018615,2]
[363853944,1748899844201,-440.0,0.00018615,2]
[363853946,1748899844211,-603.16,0.00018615,2]
[363853948,1748899844220,-440.0,0.00018615,2]
[363853950,1748899844229,-440.0,0.00018615,2]
[363853951,1748899844239,-440.0,0.00018615,2]
[363853953,1748899844249,-440.0,0.00018615,2]
[363853955,1748899844259,-440.0,0.00018615,2]
[363853957,1748899844268,-440.0,0.00018615,2]
[363853959,1748899844278,-440.0,0.00018616,2]
[363853961,1748899844288,-440.0,0.00018616,2]
[363853963,1748899844298,-615.38,0.00018616,2]
[363853965,1748899844308,-440.0,0.00018616,2]
[363853967,1748899844318,-440.0,0.00018616,2]
[363853969,1748899844327,-384.39285761,0.00018616,2]
[363853971,1748899844337,-440.0,0.00018616,2]
[363853973,1748899844346,-440.0,0.00018616,2]
[363853975,1748899844356,-440.0,0.00018616,2]
[363853976,1748899844366,-440.0,0.00018616,2]
[363853978,1748899844375,-440.0,0.00018617,2]
[363853980,1748899844385,-440.0,0.00018617,2]
[363853982,1748899844395,-440.0,0.00018617,2]
[363853984,1748899844404,-623.24,0.00018617,2]
[363853986,1748899844414,-440.0,0.00018617,2]
[363853988,1748899844424,-172.91760574,0.00018674,2]
[363853990,1748899844434,-529.4326171,0.00018728,2]
[363853992,1748899844446,-2555.31,0.00018803,2]
[363853994,1748899844455,-440.0,0.00018888,2]
[363853996,1748899844465,-440.0,0.00018888,2]
[363853998,1748899844474,-858.73,0.00018889,2]
[363854000,1748899844483,-440.0,0.00018889,2]
[363854002,1748899844492,-804.7,0.00018889,2]
[363854004,1748899844501,-440.0,0.00018889,2]
[363854006,1748899844511,-603.16,0.00018889,2]
[363854008,1748899844521,-440.0,0.00018889,2]
[363854010,1748899844532,-440.0,0.00018889,2]
[363854012,1748899844542,-370.0,0.00018889,2]
[363854014,1748899844552,-440.0,0.00018889,2]
[363854016,1748899844562,-258.11020354,0.00018889,2]
[363854018,1748899844571,-440.0,0.00018889,2]
[363854020,1748899844581,-212.64,0.0001889,2]
[363854022,1748899844590,-440.0,0.0001889,2]
[363854024,1748899844599,-615.38,0.0001889,2]
[363854026,1748899844609,-440.0,0.0001889,2]
[363854028,1748899844619,-440.0,0.0001889,2]
[363854030,1748899844628,-440.0,0.0001889,2]
[363854032,1748899844637,-440.0,0.0001889,2]
[363854034,1748899844647,-496.93,0.0001889,2]
[363854036,1748899844657,-440.0,0.0001889,2]
[363854038,1748899844667,-440.0,0.00018891,2]
[363854040,1748899844676,-440.0,0.00018891,2]
[363854042,1748899844686,-440.0,0.00018891,2]
[363854044,1748899844696,-623.24,0.00018891,2]
[363854046,1748899844706,-440.0,0.00018891,2]
[363854048,1748899844716,-835.18661038,0.000189,2]